fUSD/lending_fUSD_20260610
["ID","MTS","AMOUNT","RATE_DAILY","PERIOD"]
[424653573,1781034654000,-500.0,0.00024,2]
[424653581,1781034654000,-500.0,0.00024,2]
[424653574,1781034654000,-500.0,0.00024,2]
[424653575,1781034654000,-500.0,0.00024,2]
[424653576,1781034654000,-500.0,0.00024,2]
[424653577,1781034654000,-500.0,0.00024,2]
[424653565,1781034654000,-500.0,0.00024,2]
[424653610,1781034654000,-500.0,0.00024,2]
[424653597,1781034654000,-500.0,0.00024,2]
[424653608,1781034654000,-500.0,0.00024,2]
[424653647,1781034654000,-1612.43193386,0.00024593,2]
[424653638,1781034654000,-1599.6,0.00024324,2]
[424653637,1781034654000,-850.87,0.000243,7]
[424653642,1781034654000,-809.91,0.00024418,7]
[424653643,1781034654000,-584.29,0.00024418,7]
[424653645,1781034654000,-1125.0,0.00024491,2]
[424653646,1781034654000,-168.95797687,0.0002455,15]
[424653644,1781034654000,-17600.0,0.00024463,7]
[424653649,1781034654000,-151.0,0.00024658,2]
[424653648,1781034654000,-306.88,0.00024658,8]
[424653653,1781034654000,-151.0,0.00024658,2]
[424653641,1781034654000,-270.0455652,0.00024406,2]
[424653658,1781034654000,-388.607731,0.00024658,2]
[424653651,1781034654000,-151.0,0.00024658,2]
[424653650,1781034654000,-151.0,0.00024658,2]
[424653652,1781034654000,-151.0,0.00024658,2]
[424653656,1781034654000,-151.0,0.00024658,2]
[424653654,1781034654000,-151.0,0.00024658,2]
[424653655,1781034654000,-151.0,0.00024658,2]
[424653659,1781034654000,-388.607731,0.00024658,2]
[424653660,1781034654000,-388.607731,0.00024658,2]
[424653661,1781034654000,-388.607731,0.00024658,2]
[424653664,1781034654000,-388.607731,0.00024658,2]
[424653662,1781034654000,-388.607731,0.00024658,2]
[424653657,1781034654000,-388.607731,0.00024658,2]
[424653639,1781034654000,-8092.0,0.00024325,2]
[424653605,1781034654000,-500.0,0.00024,2]
[424653636,1781034654000,-500.0,0.00024224,2]
[424653611,1781034654000,-500.0,0.00024,2]
[424653613,1781034654000,-500.0,0.00024,2]
[424653614,1781034654000,-500.0,0.00024,2]
[424653619,1781034654000,-500.0,0.00024,2]
[424653622,1781034654000,-500.0,0.00024,2]
[424653623,1781034654000,-500.0,0.00024,2]
[424653615,1781034654000,-500.0,0.00024,2]
[424653640,1781034654000,-154.6875,0.00024406,2]
[424653617,1781034654000,-500.0,0.00024,2]
[424653616,1781034654000,-500.0,0.00024,2]
[424653663,1781034654000,-388.607731,0.00024658,2]
[424653624,1781034654000,-500.0,0.00024,2]
[424653620,1781034654000,-500.0,0.00024,2]
[424653618,1781034654000,-500.0,0.00024,2]
[424653621,1781034654000,-500.0,0.00024,2]
[424653635,1781034654000,-200.0,0.00024169,2]
[424653631,1781034654000,-2256.0,0.00024,2]
[424653633,1781034654000,-2000.0,0.000241,2]
[424653632,1781034654000,-4465.0,0.00024,2]
[424653634,1781034654000,-152.0,0.00024165,6]
[424653629,1781034654000,-516.0,0.00024,2]
[424653628,1781034654000,-500.0,0.00024,2]
[424653627,1781034654000,-839.0,0.00024,2]
[424653625,1781034654000,-784.0,0.00024,2]
[424653626,1781034654000,-697.0,0.00024,2]
[424653630,1781034654000,-700.0,0.00024,2]
[424653700,1781034655000,-2214.14215651,0.00025,2]
[424653698,1781034655000,-786.19811307,0.00025,2]
[424653697,1781034655000,-787528.03425971,0.00025,2]
[424653695,1781034655000,-2237.57180312,0.00025,2]
[424653696,1781034655000,-170.1426362,0.00025,2]
[424653702,1781034655000,-662.5011041,0.00025,2]
[424653703,1781034655000,-3345.0,0.00025,2]
[424653694,1781034655000,-40707.29858851,0.00025,7]
[424653704,1781034655000,-737.0,0.00025,2]
[424653693,1781034655000,-7249.04893292,0.00025,2]
[424653699,1781034655000,-570.0,0.00025,2]
[424653710,1781034655000,-186.921122,0.00025,2]
[424653705,1781034655000,-1272.0,0.00025,2]
[424653716,1781034655000,-858.0,0.00025,2]
[424653707,1781034655000,-186.921122,0.00025,2]
[424653708,1781034655000,-186.921122,0.00025,2]
[424653713,1781034655000,-151.0,0.00025,2]
[424653714,1781034655000,-705.0,0.00025,2]
[424653711,1781034655000,-151.0,0.00025,2]
[424653706,1781034655000,-347.0,0.00025,2]
[424653717,1781034655000,-719.0,0.00025,2]
[424653709,1781034655000,-186.921122,0.00025,2]
[424653712,1781034655000,-151.0,0.00025,2]
[424653691,1781034655000,-621.07969832,0.00025,2]
[424653701,1781034655000,-818.35498657,0.00025,2]
[424653692,1781034655000,-3094.65801844,0.00025,2]
[424653673,1781034655000,-817.801717,0.00024658,2]
[424653690,1781034655000,-540.0,0.00025,2]
[424653715,1781034655000,-215.89329178,0.00025,7]
[424653665,1781034655000,-815.39,0.00024658,2]
[424653670,1781034655000,-817.801717,0.00024658,2]
[424653669,1781034655000,-817.801717,0.00024658,2]
[424653667,1781034655000,-817.801717,0.00024658,2]
[424653666,1781034655000,-817.801717,0.00024658,2]
[424653668,1781034655000,-817.801717,0.00024658,2]
[424653671,1781034655000,-817.801717,0.00024658,2]
[424653672,1781034655000,-817.801717,0.00024658,2]
[424653677,1781034655000,-206.0,0.00024815,2]
[424653676,1781034655000,-350.0,0.00024684,5]
[424653689,1781034655000,-2000.0,0.00025,2]
[424653674,1781034655000,-1000.0,0.00024658,2]
[424653675,1781034655000,-150.0,0.00024658,2]
[424653680,1781034655000,-200.0,0.00024944,2]
[424653679,1781034655000,-2000.0,0.000249,2]
[424653678,1781034655000,-152.0,0.00024818,7]
[424653682,1781034655000,-280.03725111,0.00024954,2]
[424653684,1781034655000,-666.0,0.00024999,2]
[424653683,1781034655000,-220.0,0.00024969,10]
[424653688,1781034655000,-1815.01307875,0.00025,2]
[424653687,1781034655000,-210.99144652,0.00025,2]
[424653685,1781034655000,-300.0,0.00024999,10]
[424653686,1781034655000,-1132.71453791,0.00025,2]
[424653681,1781034655000,-500.0,0.00024951,2]
[424653718,1781034655000,-2259.04775635,0.00025,2]
[424653727,1781034655000,-182.26,0.00025,2]
[424653773,1781034655000,-524.095183,0.00026062,2]
[424653750,1781034655000,-3643.0,0.0002578,2]
[424653756,1781034655000,-150.0,0.00026028,2]
[424653753,1781034655000,-285.0,0.00025928,2]
[424653754,1781034655000,-550.0,0.00026,2]
[424653751,1781034655000,-6075.0,0.0002578,2]
[424653752,1781034655000,-300.0,0.000259,10]
[424653755,1781034655000,-850.87,0.00026,7]
[424653757,1781034655000,-151.0,0.00026047,2]
[424653758,1781034655000,-644.79446245,0.00026047,2]
[424653760,1781034655000,-10116.0,0.00026062,2]
[424653769,1781034655000,-416.466914,0.00026062,2]
[424653748,1781034655000,-1227.0,0.0002578,2]
[424653761,1781034655000,-234.0,0.00026062,2]
[424653765,1781034655000,-2416.224079,0.00026062,2]
[424653768,1781034655000,-416.466914,0.00026062,2]
[424653767,1781034655000,-416.466914,0.00026062,2]
[424653770,1781034655000,-151.0,0.00026062,2]
[424653764,1781034655000,-2416.224079,0.00026062,2]
[424653762,1781034655000,-2416.224079,0.00026062,2]
[424653766,1781034655000,-416.466914,0.00026062,2]
[424653771,1781034655000,-151.0,0.00026062,2]
[424653772,1781034655000,-170.931993,0.00026062,2]
[424653719,1781034655000,-5530.0,0.00025,3]
[424653774,1781034655000,-524.095183,0.00026062,2]
[424653763,1781034655000,-2416.224079,0.00026062,2]
[424653747,1781034655000,-1274.0,0.0002578,2]
[424653759,1781034655000,-301.14337869,0.0002605,2]
[424653746,1781034655000,-382.0,0.0002578,2]
[424653720,1781034655000,-182.26,0.00025,2]
[424653744,1781034655000,-3555.0,0.0002578,2]
[424653724,1781034655000,-182.26,0.00025,2]
[424653725,1781034655000,-182.26,0.00025,2]
[424653721,1781034655000,-182.26,0.00025,2]
[424653722,1781034655000,-182.26,0.00025,2]
[424653723,1781034655000,-182.26,0.00025,2]
[424653728,1781034655000,-182.26,0.00025,2]
[424653730,1781034655000,-6426.36,0.00025109,7]
[424653732,1781034655000,-500.0,0.00025342,2]
[424653734,1781034655000,-290.3986294,0.00025502,2]
[424653735,1781034655000,-180.51034922,0.00025522,2]
[424653733,1781034655000,-152.0,0.00025472,8]
[424653726,1781034655000,-182.26,0.00025,2]
[424653731,1781034655000,-2000.0,0.00025258,7]
[424653738,1781034655000,-500.0,0.000257,2]
[424653736,1781034655000,-500.0,0.00025559,14]
[424653729,1781034655000,-4483.82810851,0.00025,2]
[424653739,1781034655000,-2000.0,0.000257,2]
[424653740,1781034655000,-5530.0,0.000257,5]
[424653741,1781034655000,-1125.0,0.00025715,2]
[424653742,1781034655000,-200.0,0.00025718,2]
[424653743,1781034655000,-446.63,0.00025768,2]
[424653749,1781034655000,-1214.0,0.0002578,2]
[424653745,1781034655000,-1358.0,0.0002578,2]
[424653737,1781034655000,-163.15,0.00025644,2]
[424653803,1781034656000,-565.10148306,0.00026146,4]
[424653806,1781034656000,-166.862507,0.00026154,2]
[424653807,1781034656000,-5257.394979,0.00026154,2]
[424653812,1781034656000,-167.21291421,0.00026176,4]
[424653810,1781034656000,-5257.394979,0.00026154,2]
[424653809,1781034656000,-5257.394979,0.00026154,2]
[424653804,1781034656000,-150.0,0.00026154,4]
[424653808,1781034656000,-5257.394979,0.00026154,2]
[424653802,1781034656000,-167.21291421,0.00026146,4]
[424653811,1781034656000,-150.0,0.00026168,4]
[424653814,1781034656000,-150.0,0.00026186,4]
[424653818,1781034656000,-565.10148306,0.00026205,4]
[424653816,1781034656000,-150.0,0.00026204,4]
[424653815,1781034656000,-150.0,0.00026199,4]
[424653817,1781034656000,-167.21291421,0.00026205,4]
[424653813,1781034656000,-565.10148306,0.00026176,4]
[424653821,1781034656000,-167.21291421,0.00026234,4]
[424653820,1781034656000,-150.0,0.00026219,4]
[424653822,1781034656000,-565.10148306,0.00026234,4]
[424653823,1781034656000,-150.0,0.00026249,4]
[424653826,1781034656000,-167.21291421,0.00026263,4]
[424653824,1781034656000,-150.0,0.00026252,4]
[424653805,1781034656000,-151.0,0.00026154,2]
[424653819,1781034656000,-150.0,0.00026208,4]
[424653799,1781034656000,-152.0,0.00026126,9]
[424653829,1781034656000,-150.0,0.00026289,4]
[424653794,1781034656000,-817.801717,0.00026117,2]
[424653775,1781034656000,-524.095183,0.00026062,2]
[424653776,1781034656000,-151.0,0.00026062,2]
[424653777,1781034656000,-524.095183,0.00026062,2]
[424653780,1781034656000,-150.0,0.00026088,4]
[424653778,1781034656000,-151.0,0.00026062,2]
[424653779,1781034656000,-150.3730817,0.00026088,4]
[424653782,1781034656000,-150.0,0.00026088,4]
[424653781,1781034656000,-150.0,0.00026088,4]
[424653784,1781034656000,-150.0,0.00026088,4]
[424653783,1781034656000,-167.21291421,0.00026088,4]
[424653789,1781034656000,-150.0,0.00026088,4]
[424653793,1781034656000,-316.449424,0.00026117,2]
[424653791,1781034656000,-167.21291421,0.00026117,4]
[424653788,1781034656000,-565.10148306,0.00026088,4]
[424653785,1781034656000,-150.086276,0.00026088,4]
[424653786,1781034656000,-150.0,0.00026088,4]
[424653790,1781034656000,-150.0,0.00026088,4]
[424653792,1781034656000,-565.10148306,0.00026117,4]
[424653796,1781034656000,-817.801717,0.00026117,2]
[424653795,1781034656000,-817.801717,0.00026117,2]
[424653798,1781034656000,-150.0,0.00026121,4]
[424653800,1781034656000,-150.0,0.00026128,4]
[424653797,1781034656000,-817.801717,0.00026117,2]
[424653801,1781034656000,-150.0,0.00026143,4]
[424653787,1781034656000,-150.0,0.00026088,4]
[424653828,1781034656000,-150.0,0.00026285,4]
[424653879,1781034656000,-150.0,0.00026483,4]
[424653830,1781034656000,-167.21291421,0.00026293,4]
[424653859,1781034656000,-1224.559843,0.00026384,2]
[424653860,1781034656000,-1224.559843,0.00026384,2]
[424653862,1781034656000,-1224.559843,0.00026384,2]
[424653866,1781034656000,-565.10148306,0.0002641,4]
[424653861,1781034656000,-1224.559843,0.00026384,2]
[424653864,1781034656000,-167.21291421,0.0002641,4]
[424653858,1781034656000,-1224.559843,0.00026384,2]
[424653865,1781034656000,-150.0,0.0002641,4]
[424653863,1781034656000,-150.0,0.00026384,4]
[424653878,1781034656000,-150.0,0.00026478,4]
[424653868,1781034656000,-150.0,0.00026422,4]
[424653875,1781034656000,-167.21291421,0.00026468,4]
[424653869,1781034656000,-150.0,0.00026436,4]
[424653870,1781034656000,-167.21291421,0.00026439,4]
[424653872,1781034656000,-150.0,0.0002645,4]
[424653874,1781034656000,-150.0,0.0002645,4]
[424653873,1781034656000,-150.0,0.0002645,4]
[424653871,1781034656000,-565.10148306,0.00026439,4]
[424653876,1781034656000,-565.10148306,0.00026468,4]
[424653877,1781034656000,-497.42096307,0.00026471,2]
[424653880,1781034656000,-150.0,0.0002649,4]
[424653881,1781034656000,-200.0,0.00026493,2]
[424653825,1781034656000,-150.0,0.00026255,4]
[424653857,1781034656000,-1224.559843,0.00026384,2]
[424653853,1781034656000,-1224.559843,0.00026384,2]
[424653867,1781034656000,-150.0,0.00026417,4]
[424653852,1781034656000,-1224.559843,0.00026384,2]
[424653832,1781034656000,-1599.6,0.00026296,2]
[424653850,1781034656000,-1224.559843,0.00026384,2]
[424653831,1781034656000,-565.10148306,0.00026293,4]
[424653833,1781034656000,-150.0,0.00026311,4]
[424653827,1781034656000,-565.10148306,0.00026263,4]
[424653834,1781034656000,-150.0,0.00026318,4]
[424653843,1781034656000,-150.0,0.00026366,4]
[424653840,1781034656000,-167.21291421,0.00026351,4]
[424653842,1781034656000,-150.0,0.00026351,4]
[424653844,1781034656000,-150.0,0.00026369,4]
[424653838,1781034656000,-573.19,0.00026325,2]
[424653845,1781034656000,-167.21291421,0.0002638,4]
[424653839,1781034656000,-150.0,0.00026329,4]
[424653841,1781034656000,-565.10148306,0.00026351,4]
[424653854,1781034656000,-1224.559843,0.00026384,2]
[424653851,1781034656000,-1224.559843,0.00026384,2]
[424653855,1781034656000,-1224.559843,0.00026384,2]
[424653856,1781034656000,-1224.559843,0.00026384,2]
[424653847,1781034656000,-1224.559843,0.00026384,2]
[424653849,1781034656000,-1224.559843,0.00026384,2]
[424653846,1781034656000,-565.10148306,0.0002638,4]
[424653836,1781034656000,-167.21291421,0.00026322,4]
[424653837,1781034656000,-565.10148306,0.00026322,4]
[424653835,1781034656000,-150.0,0.0002632,4]
[424653848,1781034656000,-1224.559843,0.00026384,2]
[424653922,1781034657000,-150.0,0.00026746,4]
[424653919,1781034657000,-167.21291421,0.00026732,4]
[424653917,1781034657000,-565.10148306,0.00026703,4]
[424653918,1781034657000,-150.0,0.00026714,4]
[424653921,1781034657000,-565.10148306,0.00026732,4]
[424653916,1781034657000,-167.21291421,0.00026703,4]
[424653915,1781034657000,-150.0,0.00026701,4]
[424653926,1781034657000,-150.0,0.0002676,2]
[424653912,1781034657000,-565.10148306,0.00026673,4]
[424653913,1781034657000,-150.0,0.00026681,4]
[424653924,1781034657000,-150.0,0.00026757,4]
[424653920,1781034657000,-150.0,0.00026732,4]
[424653923,1781034657000,-874.1,0.00026748,7]
[424653937,1781034657000,-167.21291421,0.00026761,4]
[424653927,1781034657000,-150.0,0.0002676,2]
[424653931,1781034657000,-150.0,0.0002676,2]
[424653932,1781034657000,-150.0,0.0002676,2]
[424653929,1781034657000,-150.0,0.0002676,2]
[424653933,1781034657000,-150.0,0.0002676,2]
[424653930,1781034657000,-150.0,0.0002676,2]
[424653928,1781034657000,-150.0,0.0002676,2]
[424653934,1781034657000,-150.0,0.0002676,2]
[424653938,1781034657000,-565.10148306,0.00026761,4]
[424653935,1781034657000,-150.0,0.0002676,2]
[424653936,1781034657000,-150.0,0.0002676,2]
[424653940,1781034657000,-150.0,0.00026779,4]
[424653909,1781034657000,-340.91018729,0.00026667,2]
[424653925,1781034657000,-150.0,0.0002676,2]
[424653905,1781034657000,-565.10148306,0.00026644,4]
[424653889,1781034657000,-150.0,0.00026534,4]
[424653914,1781034657000,-150.0,0.00026692,4]
[424653882,1781034657000,-167.21291421,0.00026498,4]
[424653890,1781034657000,-150.0,0.00026549,4]
[424653885,1781034657000,-150.0,0.00026516,4]
[424653888,1781034657000,-150.0,0.00026531,4]
[424653883,1781034657000,-565.10148306,0.00026498,4]
[424653884,1781034657000,-2000.0,0.000265,2]
[424653887,1781034657000,-565.10148306,0.00026527,4]
[424653886,1781034657000,-167.21291421,0.00026527,4]
[424653902,1781034657000,-565.10148306,0.00026615,4]
[424653892,1781034657000,-167.21291421,0.00026556,4]
[424653893,1781034657000,-565.10148306,0.00026556,4]
[424653895,1781034657000,-150.0,0.00026571,4]
[424653891,1781034657000,-150.0,0.00026551,4]
[424653897,1781034657000,-167.21291421,0.00026585,4]
[424653894,1781034657000,-150.0,0.00026571,4]
[424653898,1781034657000,-565.10148306,0.00026585,4]
[424653896,1781034657000,-150.0,0.00026582,4]
[424653901,1781034657000,-167.21291421,0.00026615,4]
[424653900,1781034657000,-150.0,0.00026611,4]
[424653899,1781034657000,-150.0,0.00026589,4]
[424653903,1781034657000,-150.0,0.00026615,4]
[424653906,1781034657000,-150.0,0.00026645,4]
[424653904,1781034657000,-167.21291421,0.00026644,4]
[424653911,1781034657000,-167.21291421,0.00026673,4]
[424653908,1781034657000,-150.0,0.00026651,4]
[424653910,1781034657000,-150.0,0.00026667,4]
[424653950,1781034657000,-167.21291421,0.0002682,4]
[424653907,1781034657000,-150.0,0.00026648,4]
[424653939,1781034657000,-150.0,0.00026772,4]
[424653976,1781034657000,-565.10148306,0.00026995,4]
[424653946,1781034657000,-150.0,0.00026812,4]
[424653975,1781034657000,-167.21291421,0.00026995,4]
[424653986,1781034657000,-150.0,0.00027035,4]
[424653985,1781034657000,-565.10148306,0.00027025,4]
[424653978,1781034657000,-7732.11304072,0.00027,5]
[424653977,1781034657000,-800.749999,0.00027,2]
[424653983,1781034657000,-150.0,0.00027015,4]
[424653982,1781034657000,-150.0,0.00027014,4]
[424653979,1781034657000,-617.0,0.00027,2]
[424653987,1781034657000,-1612.43193386,0.00027041,2]
[424653981,1781034657000,-150.0,0.0002701,4]
[424653980,1781034657000,-215.89329178,0.00027,7]
[424653984,1781034657000,-167.21291421,0.00027025,4]
[424653994,1781034657000,-167.21291421,0.00027083,4]
[424653990,1781034657000,-150.0,0.00027054,4]
[424653988,1781034657000,-150.0,0.00027043,4]
[424653992,1781034657000,-565.10148306,0.00027054,4]
[424653989,1781034657000,-167.21291421,0.00027054,4]
[424653991,1781034657000,-150.0,0.00027054,4]
[424653997,1781034657000,-150.0,0.00027091,4]
[424653995,1781034657000,-565.10148306,0.00027083,4]
[424653993,1781034657000,-150.0,0.00027076,4]
[424654000,1781034657000,-167.21291421,0.00027112,4]
[424653999,1781034657000,-150.0,0.00027109,4]
[424653996,1781034657000,-394.0,0.00027091,7]
[424653998,1781034657000,-150.0,0.00027094,4]
[424654002,1781034657000,-152.0,0.00027123,2]
[424653945,1781034657000,-6426.36,0.00026812,7]
[424653969,1781034657000,-150.0,0.00026944,4]
[424653967,1781034657000,-167.21291421,0.00026937,4]
[424654001,1781034657000,-565.10148306,0.00027112,4]
[424653966,1781034657000,-150.0,0.00026933,4]
[424653968,1781034657000,-565.10148306,0.00026937,4]
[424653942,1781034657000,-150.0,0.00026783,4]
[424653944,1781034657000,-565.10148306,0.0002679,4]
[424653943,1781034657000,-167.21291421,0.0002679,4]
[424653948,1781034657000,-150.0,0.00026812,4]
[424653947,1781034657000,-150.0,0.00026812,4]
[424653949,1781034657000,-150.0,0.00026812,4]
[424653951,1781034657000,-565.10148306,0.0002682,4]
[424653955,1781034657000,-150.0,0.00026853,4]
[424653954,1781034657000,-565.10148306,0.00026849,4]
[424653956,1781034657000,-150.0,0.00026868,4]
[424653952,1781034657000,-150.0,0.00026845,4]
[424653957,1781034657000,-167.21291421,0.00026878,4]
[424653941,1781034657000,-152.0,0.0002678,10]
[424653958,1781034657000,-565.10148306,0.00026878,4]
[424653974,1781034657000,-150.0,0.0002698,4]
[424653971,1781034657000,-565.10148306,0.00026966,4]
[424653972,1781034657000,-150.0,0.00026973,4]
[424653973,1781034657000,-150.0,0.00026977,4]
[424653953,1781034657000,-167.21291421,0.00026849,4]
[424653964,1781034657000,-150.0,0.00026911,4]
[424653970,1781034657000,-167.21291421,0.00026966,4]
[424653959,1781034657000,-150.0,0.00026878,4]
[424653960,1781034657000,-150.0,0.00026893,4]
[424653963,1781034657000,-565.10148306,0.00026907,4]
[424653961,1781034657000,-150.0,0.00026899,4]
[424653962,1781034657000,-167.21291421,0.00026907,4]
[424653965,1781034657000,-150.0,0.00026924,4]
[424654039,1781034658000,-150.0,0.00027203,4]
[424654047,1781034658000,-150.0,0.00027258,4]
[424654038,1781034658000,-565.10148306,0.000272,4]
[424654040,1781034658000,-150.0,0.00027208,4]
[424654035,1781034658000,-150.0,0.00027175,4]
[424654037,1781034658000,-167.21291421,0.000272,4]
[424654041,1781034658000,-150.0,0.00027215,4]
[424654034,1781034658000,-150.0,0.00027175,4]
[424654030,1781034658000,-150.0,0.00027147,4]
[424654032,1781034658000,-565.10148306,0.00027171,4]
[424654046,1781034658000,-150.0,0.00027255,4]
[424654045,1781034658000,-150.0,0.00027247,4]
[424654050,1781034658000,-200.0,0.00027268,2]
[424654044,1781034658000,-150.0,0.00027241,4]
[424654042,1781034658000,-167.21291421,0.0002723,4]
[424654049,1781034658000,-565.10148306,0.00027259,4]
[424654048,1781034658000,-167.21291421,0.00027259,4]
[424654051,1781034658000,-150.0,0.00027273,4]
[424654053,1781034658000,-565.10148306,0.00027288,4]
[424654052,1781034658000,-167.21291421,0.00027288,4]
[424654056,1781034658000,-219.26939081,0.000273,30]
[424654057,1781034658000,-150.0,0.00027306,4]
[424654054,1781034658000,-150.0,0.00027295,4]
[424654055,1781034658000,-219.26939083,0.000273,30]
[424654033,1781034658000,-150.0,0.00027175,4]
[424654058,1781034658000,-150.0,0.00027314,4]
[424654043,1781034658000,-565.10148306,0.0002723,4]
[424654036,1781034658000,-350.0,0.00027198,9]
[424654024,1781034658000,-151.0,0.00027134,2]
[424654028,1781034658000,-150.0,0.00027142,4]
[424654061,1781034658000,-150.0,0.00027336,4]
[424654012,1781034658000,-774.886158,0.00027134,2]
[424654004,1781034658000,-186.0,0.00027123,2]
[424654003,1781034658000,-2131.0,0.00027123,2]
[424654013,1781034658000,-774.886158,0.00027134,2]
[424654007,1781034658000,-150.0,0.00027131,4]
[424654005,1781034658000,-202.700081,0.00027131,7]
[424654009,1781034658000,-300.0,0.00027133,10]
[424654006,1781034658000,-199.377984,0.00027131,7]
[424654011,1781034658000,-774.886158,0.00027134,2]
[424654008,1781034658000,-300.0,0.00027133,10]
[424654010,1781034658000,-8805.7778071,0.00027134,2]
[424654031,1781034658000,-167.21291421,0.00027171,4]
[424654014,1781034658000,-774.886158,0.00027134,2]
[424654025,1781034658000,-150.0,0.00027134,4]
[424654022,1781034658000,-187.065323,0.00027134,2]
[424654018,1781034658000,-388.607731,0.00027134,2]
[424654023,1781034658000,-151.0,0.00027134,2]
[424654017,1781034658000,-388.607731,0.00027134,2]
[424654015,1781034658000,-151.0,0.00027134,2]
[424654016,1781034658000,-151.0,0.00027134,2]
[424654020,1781034658000,-388.607731,0.00027134,2]
[424654021,1781034658000,-151.0,0.00027134,2]
[424654027,1781034658000,-565.10148306,0.00027142,4]
[424654026,1781034658000,-167.21291421,0.00027142,4]
[424654029,1781034658000,-1195.0,0.00027146,10]
[424654019,1781034658000,-388.607731,0.00027134,2]
[424654059,1781034658000,-167.21291421,0.00027317,4]
[424654069,1781034658000,-167.21291421,0.00027376,4]
[424654099,1781034658000,-500.0,0.00027397,2]
[424654086,1781034658000,-1674.0,0.00027397,2]
[424654090,1781034658000,-1674.0,0.00027397,2]
[424654085,1781034658000,-500.0,0.00027397,2]
[424654097,1781034658000,-500.0,0.00027397,2]
[424654104,1781034658000,-1674.0,0.00027397,2]
[424654103,1781034658000,-500.0,0.00027397,2]
[424654105,1781034658000,-500.0,0.00027397,2]
[424654098,1781034658000,-1674.0,0.00027397,2]
[424654096,1781034658000,-1674.0,0.00027397,2]
[424654101,1781034658000,-500.0,0.00027397,2]
[424654102,1781034658000,-1674.0,0.00027397,2]
[424654100,1781034658000,-1674.0,0.00027397,2]
[424654093,1781034658000,-500.0,0.00027397,2]
[424654107,1781034658000,-500.0,0.00027397,2]
[424654109,1781034658000,-1674.0,0.00027397,2]
[424654112,1781034658000,-500.0,0.00027397,2]
[424654111,1781034658000,-1674.0,0.00027397,2]
[424654113,1781034658000,-1674.0,0.00027397,2]
[424654108,1781034658000,-500.0,0.00027397,2]
[424654114,1781034658000,-500.0,0.00027397,2]
[424654116,1781034658000,-318.26884413,0.00027397,2]
[424654117,1781034658000,-1674.0,0.00027397,2]
[424654118,1781034658000,-150.0,0.00027397,2]
[424654115,1781034658000,-1674.0,0.00027397,2]
[424654063,1781034658000,-167.21291421,0.00027347,4]
[424654119,1781034658000,-1674.0,0.00027397,2]
[424654110,1781034658000,-500.0,0.00027397,2]
[424654091,1781034658000,-500.0,0.00027397,2]
[424654106,1781034658000,-1674.0,0.00027397,2]
[424654094,1781034658000,-1674.0,0.00027397,2]
[424654065,1781034658000,-150.0,0.00027363,4]
[424654066,1781034658000,-2000.0,0.00027364,7]
[424654060,1781034658000,-565.10148306,0.00027317,4]
[424654067,1781034658000,-150.0,0.0002737,4]
[424654062,1781034658000,-150.0,0.00027339,4]
[424654064,1781034658000,-565.10148306,0.00027347,4]
[424654070,1781034658000,-150.0,0.00027376,4]
[424654068,1781034658000,-150.0,0.00027372,4]